fUSD/lending_fUSD_20251030
["ID","MTS","AMOUNT","RATE_DAILY","PERIOD"]
[392715744,1761852654880,-150.0,0.00034692,7]
[392715745,1761852654890,-150.0,0.00034692,7]
[392715746,1761852654899,-300.0,0.000347,2]
[392715747,1761852654908,-347.29641162,0.000347,2]
[392715748,1761852654917,-2000.0,0.000347,2]
[392715749,1761852654926,-150.0,0.00034782,7]
[392715750,1761852654936,-150.0,0.00034782,7]
[392715751,1761852654945,-150.0,0.00034782,7]
[392715752,1761852654954,-152.88,0.00034789,60]
[392715753,1761852654963,-151.73,0.00034789,60]
[392715754,1761852654973,-587.94780569,0.00034794,2]
[392715755,1761852654982,-875.49,0.00034794,2]
[392715756,1761852654993,-4420.37,0.00034794,2]
[392715757,1761852655003,-300.0,0.00034794,2]
[392715758,1761852655014,-750.0,0.00034795,2]
[392715759,1761852655024,-750.0,0.00034795,2]
[392715760,1761852655034,-507.74347007,0.00034821,60]
[392715761,1761852655044,-153.06969321,0.00034822,30]
[392715762,1761852655054,-150.0,0.00034823,7]
[392715763,1761852655063,-152.88,0.00034889,60]
[392715764,1761852655073,-151.73,0.00034889,60]
[392715765,1761852655082,-537.1667943,0.000349,2]
[392715766,1761852655095,-152.0,0.00034925,4]
[392715767,1761852655104,-150.0,0.00034932,7]
[392715768,1761852655113,-150.0,0.00034932,7]
[392715769,1761852655126,-1000.0,0.00034963,7]
[392715770,1761852655136,-421.16123923,0.00034989,120]
[392715771,1761852655144,-152.88,0.00034989,60]
[392715772,1761852655154,-151.73,0.00034989,60]
[392715773,1761852655165,-500.0,0.00034999,7]
[392715774,1761852655174,-380.06,0.00035,7]
[392715775,1761852655184,-2067.57,0.00035,7]
[392715776,1761852655193,-2783.38,0.00035,7]
[392715777,1761852655202,-606.42,0.00035,7]
[392715778,1761852655213,-1791.09,0.00035,7]
[392715779,1761852655223,-935.73,0.00035,7]
[392715780,1761852655232,-151.0,0.00035,7]
[392715781,1761852655241,-400.9076102,0.00035,2]
[392715782,1761852655251,-1218.11956718,0.00035,2]
[392715783,1761852655260,-750.0,0.00035,10]
[392715784,1761852655270,-151.0,0.00035,7]
[392715785,1761852655279,-151.0,0.00035,7]
[392715786,1761852655290,-300.0,0.00035,14]
[392715787,1761852655299,-195.33509075,0.00035,30]
[392715788,1761852655308,-150.0,0.00035,60]
[392715789,1761852655317,-1103.0,0.00035,90]
[392715790,1761852655326,-150.0,0.00035,2]
[392715791,1761852655335,-201.0,0.00035,120]
[392715792,1761852655344,-1008.0,0.00035,7]
[392715793,1761852655354,-160.51184124,0.00035,5]
[392715794,1761852655363,-1363.24631868,0.00035,10]
[392715795,1761852655374,-150.0,0.00035008,7]
[392715796,1761852655383,-323.4349196,0.00035013,2]
[392715797,1761852655393,-875.49,0.00035068,2]
[392715798,1761852655402,-4420.37,0.00035068,2]
[392715799,1761852655412,-300.0,0.00035068,2]
[392715800,1761852655422,-750.0,0.00035068,2]
[392715801,1761852655432,-750.0,0.00035068,2]
[392715802,1761852655441,-500.0,0.00035068,7]
[392715803,1761852655450,-152.88,0.00035089,60]
[392715804,1761852655460,-151.73,0.00035089,60]
[392715805,1761852655469,-150.0,0.00035105,7]
[392715806,1761852655479,-150.0,0.00035151,7]
[392715807,1761852655488,-152.88,0.00035189,60]
[392715808,1761852655497,-151.73,0.00035189,60]
[392715809,1761852655507,-153.06969321,0.00035205,30]
[392715810,1761852655516,-150.0,0.00035234,7]
[392715811,1761852655526,-150.0,0.00035234,7]
[392715812,1761852655535,-150.0,0.00035234,7]
[392715813,1761852655544,-152.88,0.00035289,60]
[392715814,1761852655554,-151.73,0.00035289,60]
[392715815,1761852655563,-196.01,0.00035325,60]
[392715816,1761852655572,-875.49,0.00035342,2]
[392715817,1761852655581,-4420.37,0.00035342,2]
[392715818,1761852655590,-364.33836175,0.00035342,2]
[392715819,1761852655600,-750.0,0.00035342,2]
[392715820,1761852655609,-750.0,0.00035342,2]
[392715821,1761852655619,-2300.0,0.00035343,7]
[392715822,1761852655628,-152.88,0.00035389,60]
[392715823,1761852655637,-151.73,0.00035389,60]
[392715824,1761852655648,-150.0,0.00035414,7]
[392715825,1761852655658,-150.0,0.00035414,7]
[392715826,1761852655667,-150.0,0.00035459,7]
[392715827,1761852655676,-150.0,0.0003548,7]
[392715828,1761852655685,-152.88,0.00035489,60]
[392715829,1761852655694,-151.73,0.00035489,60]
[392715830,1761852655703,-387.97,0.00035584,30]
[392715831,1761852655712,-994.96,0.00035589,120]
[392715832,1761852655721,-152.88,0.00035589,60]
[392715833,1761852655731,-151.73,0.00035589,60]
[392715834,1761852655740,-153.06969321,0.00035589,30]
[392715835,1761852655749,-93841.80414436,0.0003559,8]
[392715836,1761852655761,-417.807,0.0003559,8]
[392715837,1761852655988,-10730.418,0.0003559,8]
[392715838,1761852656088,-150.0,0.000279,3]
[392715839,1761852656100,-236.362,0.00028377,2]
[392715840,1761852656110,-300.0,0.0003014,3]
[392715841,1761852656120,-22282.7965308,0.0003559,8]
[392715842,1761852656132,-722.23950193,0.0003559,8]
[392715843,1761852656144,-370.11600004,0.0003559,8]
[392715844,1761852656154,-1061.16014,0.0003559,8]
[392715845,1761852656171,-1284.67652059,0.0003559,8]
[392715846,1761852656182,-409.54096269,0.0003559,8]
[392715847,1761852656192,-409.7819995,0.0003559,8]
[392715848,1761852656203,-2010.28307417,0.0003559,8]
[392715849,1761852656214,-5346.5,0.0003559,8]
[392715850,1761852656225,-427.73462541,0.0003559,8]
[392715963,1761853091070,465.93,0.00013699,2]
[392716015,1761853831783,-165.43,0.00016712,2]
[392716016,1761853831792,-250.0,0.00017,2]
[392716017,1761853831802,-195.0,0.00018384,2]
[392716018,1761853831811,-300.0,0.00019,2]
[392716019,1761853831821,-238.97805194,0.00020182,2]
[392716020,1761853831833,-238.15943889,0.00020182,2]
[392716021,1761853831842,-465.93,0.00020187,2]
[392716022,1761853831851,-1104.82449094,0.00021118,2]
[392716023,1761853831882,-2143.0,0.00021118,2]
[392716024,1761853831894,-740.20000003,0.00021118,2]
[392716025,1761853831936,-890.77461961,0.00021118,2]
[392716026,1761853831947,-302.61183806,0.00021118,2]
[392716027,1761853831991,-298.25142819,0.00021118,2]
[392716028,1761853832004,-164.0,0.00022,2]
[392716029,1761853832014,-1353.3479619,0.000236,2]
[392716030,1761853832023,-300.0,0.00026026,2]
[392716031,1761853832033,-750.0,0.00026027,2]
[392716032,1761853832042,-750.0,0.00026027,2]
[392716033,1761853832051,-340.33264634,0.00026086,2]
[392716034,1761853832060,-90.45602253,0.00026086,2]
[392716035,1761853832071,-368.24744805,0.00026086,2]
[392716036,1761853832083,-162.13421231,0.00026086,2]
[392716037,1761853832092,-395.35792897,0.00026087,2]
[392716038,1761853832104,-736.39044514,0.00026087,2]
[392716039,1761853832116,-1607.30771664,0.00026087,2]
[392716040,1761853832128,-469.94203951,0.00026087,2]
[392716041,1761853832154,-1565.64063114,0.00026087,2]
[392716042,1761853832165,-282.70972726,0.00026087,2]
[392716121,1761853837966,-287.009,0.00025565,2]
[392716122,1761853837976,-12816.63784983,0.00026087,2]
[392716123,1761853837985,-750.0,0.00026301,2]
[392716124,1761853837995,-750.0,0.00026301,2]
[392716125,1761853838005,-750.0,0.00026575,2]
[392716126,1761853838015,-750.0,0.00026575,2]
[392716128,1761853838024,-465.93,0.00026676,2]
[392716130,1761853838034,-1353.3479619,0.0002674,2]
[392716131,1761853838043,-750.0,0.00026849,2]
[392716132,1761853838053,-1330.03,0.00026849,2]
[392716133,1761853838062,-696.31353011,0.00027123,2]
[392716135,1761853838074,-53.68646989,0.00027123,2]
[392716136,1761853838083,-750.0,0.00027123,2]
[392716138,1761853838093,-750.0,0.00027123,2]
[392716140,1761853838102,-500.0,0.00027132,7]
[392716141,1761853838112,-750.0,0.00027397,2]
[392716142,1761853838122,-4816.30924823,0.00027532,2]
[392716143,1761853838131,-500.0,0.0002766,7]
[392716144,1761853838141,-750.0,0.00027671,2]
[392716145,1761853838151,-694.44104162,0.00027945,2]
[392716146,1761853838164,-55.55895838,0.00027945,2]
[392716147,1761853838174,-420.0,0.00028166,2]
[392716148,1761853838184,-750.0,0.00028219,2]
[392716149,1761853838194,-9859.89687616,0.00028453,2]
[392716150,1761853838204,-750.0,0.00028493,2]
[392716151,1761853838214,-750.0,0.00028767,2]
[392716152,1761853838224,-150.99,0.00029009,2]
[392716153,1761853838234,-2649.14,0.00029009,2]
[392716154,1761853838243,-177.44824925,0.00029009,2]
[392716155,1761853838255,-758.85175075,0.00029009,2]
[392716156,1761853838266,-364.13,0.00029009,2]
[392716157,1761853838276,-211.6,0.00029009,2]
[392716158,1761853838286,-750.0,0.00029041,2]
[392716159,1761853838295,-168.0,0.00029131,2]
[392716160,1761853838305,-500.0,0.00029387,7]
[392716161,1761853838315,-500.0,0.00029406,7]
[392716162,1761853838325,-294.9798944,0.00029422,2]
[392716163,1761853838336,-33.3981056,0.00029422,2]
[392716164,1761853838346,-1593.0,0.00029422,2]
[392716165,1761853838356,-1730.61258884,0.00029473,7]
[392716166,1761853838369,-999.0,0.00029518,3]
[392716167,1761853838388,-168.0,0.00029872,2]
[392716168,1761853838399,-1353.3479619,0.00029881,2]
[392716169,1761853838409,-443.36840523,0.00029911,2]
[392716170,1761853838419,-11280.25865931,0.00029912,2]
[392716171,1761853838435,-1103.51810934,0.00029912,2]
[392716183,1761853839801,-150.0,0.00028032,3]
[392716184,1761853839811,-550.62631044,0.00029912,2]
[392716185,1761853839823,-379.37368956,0.00029912,2]
[392716186,1761853839905,-1775.8953556,0.00029912,2]
[392716187,1761853840016,-1867.46679998,0.00029912,2]
[392716188,1761853840055,-10655.0,0.00029912,2]
[392716202,1761853842801,-150.0,0.00028532,3]
[392716204,1761853842811,-5679.36986542,0.00029133,2]
[392716205,1761853842821,-3601.60289838,0.00029912,2]
[392716208,1761853842856,-252.44646989,0.00029912,2]
[392716217,1761853842962,-1068.6,0.00029912,2]
[392716218,1761853842973,-512.8817075,0.00029912,2]
[392716219,1761853842983,-600.0,0.00029992,11]
[392716220,1761853842992,-600.0,0.00029992,11]
[392716221,1761853843001,-600.0,0.00029992,11]
[392716222,1761853843010,-600.0,0.00029992,11]
[392716223,1761853843020,-600.0,0.00029992,11]
[392716224,1761853843029,-600.0,0.00029992,11]
[392716225,1761853843039,-600.0,0.00029992,11]
[392716226,1761853843048,-600.0,0.00029992,11]
[392716227,1761853843059,-150.0,0.0003,5]
[392716228,1761853843068,-1002.43073672,0.00030136,2]
[392716229,1761853843078,-234.62503578,0.00030136,2]
[392716230,1761853843090,-265.37496422,0.00030136,2]
[392716231,1761853843099,-349.80075833,0.00030137,2]
[392716232,1761853843109,-966.83,0.00030172,2]
[392716233,1761853843119,-121.55751814,0.00030272,3]
[392716236,1761853843192,-81.1903074,0.00030272,3]
[392716238,1761853843204,-97.25217446,0.00030272,3]
[392716239,1761853843213,-372.55782554,0.00030364,25]
[392716240,1761853843224,-2226.17617446,0.00030364,25]
[392716241,1761853843234,-173.867,0.00030364,25]
[392716242,1761853843243,-500.0,0.0003041,2]
[392716243,1761853843252,-587.0,0.00030481,2]
[392716244,1761853843262,-4357.36,0.00030486,2]
[392716245,1761853843271,-500.0,0.00030684,2]
[392716246,1761853843281,-300.0,0.00030772,3]
[392716247,1761853843290,-500.0,0.00030958,2]
[392716248,1761853843300,-2000.0,0.00031,2]
[392716249,1761853843310,-150.0,0.00031,5]
[392716250,1761853843320,-3485.3177,0.00031125,2]
[392716251,1761853843329,-561.83,0.00031175,2]
[392716252,1761853843338,-4585.41,0.00031225,2]
[392716253,1761853843348,-500.0,0.00031232,2]
[392716254,1761853843357,-966.83,0.00031304,2]
[392716256,1761853843700,-373.0,0.00031318,30]
[392716257,1761853843710,-500.0,0.00031506,2]
[392716258,1761853843720,-1155.09,0.00031612,16]
[392716259,1761853843729,-502.154534,0.0003178,2]
[392716260,1761853843738,-75.96409154,0.00031854,2]
[392716261,1761853843750,-74.03590846,0.00031854,2]
[392716262,1761853843759,-696.96,0.00031889,2]
[392716263,1761853843768,-150.0,0.00032,5]
[392716264,1761853843778,-424.09,0.00032036,2]
[392716265,1761853843787,-500.0,0.00032328,120]
[392716266,1761853843796,-500.0,0.00032328,120]
[392716267,1761853843806,-500.0,0.00032328,120]
[392716268,1761853843815,-500.0,0.00032328,120]
[392716269,1761853843825,-500.0,0.00032328,120]
[392716270,1761853843835,-500.0,0.00032328,120]
[392716271,1761853843844,-500.0,0.00032328,120]
[392716272,1761853843853,-500.0,0.00032328,120]
[392716273,1761853843863,-500.0,0.00032328,120]
[392716274,1761853843872,-500.0,0.00032328,120]
[392716275,1761853843881,-500.0,0.00032328,120]
[392716276,1761853843890,-339.59563484,0.00032328,120]
[392716299,1761853845753,-639.22380711,0.00032435,2]
[392716309,1761853845860,-327.60619289,0.00032435,2]
[392716310,1761853845869,-236.0,0.00032877,30]
[392716311,1761853845879,-153.0,0.00032877,30]
[392716312,1761853845888,-153.0,0.00032877,30]
[392716313,1761853845897,-153.0,0.00032877,30]
[392716314,1761853845907,-153.0,0.00032877,30]
[392716315,1761853845916,-106.0142198,0.00032877,30]
[392716316,1761853845928,-46.9857802,0.00032877,30]
[392716317,1761853845937,-153.0,0.00032877,30]
[392716318,1761853845947,-153.0,0.00032877,30]
[392716319,1761853845956,-239.0,0.00032877,30]
[392716320,1761853845965,-239.0,0.00032877,30]
[392716321,1761853845974,-62.10425711,0.00032877,30]
[392716322,1761853845985,-176.89574289,0.00032877,30]
[392716323,1761853845994,-232.46725761,0.00032877,30]
[392716324,1761853846014,-6.53274239,0.00032877,30]
[392716325,1761853846023,-239.0,0.00032877,30]
[392716326,1761853846033,-239.0,0.00032877,30]
[392716327,1761853846043,-239.0,0.00032877,30]
[392716328,1761853846053,-239.0,0.00032877,30]
[392716329,1761853846062,-239.0,0.00032877,30]
[392716330,1761853846071,-239.0,0.00032877,30]
[392716332,1761853846080,-99.85887945,0.00032877,30]
[392716333,1761853846092,-139.14112055,0.00032877,30]
[392716334,1761853846100,-239.0,0.00032877,30]
[392716335,1761853846109,-239.0,0.00032877,30]
[392716336,1761853846118,-239.0,0.00032877,30]
[392716337,1761853846127,-69.09838553,0.00032877,30]
[392716339,1761853846139,-83.90161447,0.00032877,30]
[392716341,1761853846148,-153.0,0.00032877,30]
[392716342,1761853846157,-153.0,0.00032877,30]
[392716343,1761853846166,-153.0,0.00032877,30]
[392716344,1761853846176,-153.0,0.00032877,30]
[392716346,1761853846184,-53.99392857,0.00032877,30]
[392716348,1761853846195,-99.00607143,0.00032877,30]
[392716350,1761853846204,-153.0,0.00032877,30]
[392716352,1761853846213,-132.36280065,0.00032877,30]
[392716354,1761853846224,-20.63719935,0.00032877,30]
[392716356,1761853846233,-153.0,0.00032877,30]
[392716358,1761853846242,-77.63480071,0.00032877,30]
[392718732,1761854957120,-152.72,0.00015036,2]
[392718733,1761854957139,-300.0,0.00015663,2]
[392718734,1761854957159,-152.72,0.00016289,2]
[392718735,1761854957177,-250.0,0.0001654,2]
[392718736,1761854957198,-300.0,0.0001654,2]
[392718737,1761854957217,-250.0,0.0001654,2]
[392718738,1761854983551,159.3,0.00028892,120]
[392718745,1761855031970,-300.0,0.00016913,2]
[392718746,1761855031979,-348.91203479,0.00016913,2]
[392718747,1761855031989,-88.68796519,0.00017,2]
[392718748,1761855032074,-161.31203481,0.00017,2]
[392718749,1761855032086,-152.72,0.00017542,2]
[392718750,1761855032096,-152.72,0.00018795,2]
[392718751,1761855032105,-300.0,0.00019,2]
[392718752,1761855032115,-405.84434454,0.00019,2]
[392718753,1761855032124,-151.0,0.00019178,2]
[392718754,1761855032133,-156.587,0.00019726,2]
[392718755,1761855032143,-152.72,0.00020048,2]
[392718756,1761855032153,-162.380719,0.00020274,2]
[392718757,1761855032162,-318.01776612,0.00020822,2]
[392718758,1761855032172,-152.72,0.00021301,2]
[392718759,1761855032181,-152.72,0.00022554,2]
[392718760,1761855032191,-152.72,0.00023807,2]
[392718761,1761855032201,-150.0,0.00024503,2]
[392718762,1761855032211,-150.0,0.00024553,2]
[392718763,1761855032221,-150.0,0.0002469,2]
[392718764,1761855032232,-152.72,0.0002506,2]
[392718765,1761855032245,-1200.0,0.00025299,2]
[392718766,1761855032255,-300.0,0.00025698,2]
[392718767,1761855032265,-1200.0,0.00025699,2]
[392718768,1761855032275,-152.72,0.00026313,2]
[392718769,1761855032284,-1204.11577555,0.00026714,2]
[392718770,1761855032294,-500.0,0.00026905,7]
[392718771,1761855032304,-383.296606,0.00027,2]
[392718772,1761855032314,-805.0,0.00027522,2]
[392718773,1761855032324,-152.72,0.00027566,2]
[392718774,1761855032335,-420.0,0.0002782,2]
[392718776,1761855032345,-335.511,0.00028076,2]
[392718778,1761855032355,-1932.98471237,0.0002808,2]
[392718780,1761855032364,-287.61899177,0.0002808,2]
[392718782,1761855032374,-272.13,0.00028222,2]
[392718783,1761855032384,-3158.0,0.000285,3]
[392718785,1761855032394,-250.0,0.00028515,2]
[392718788,1761855032403,-152.72,0.00028819,2]
[392718790,1761855032413,-200.0,0.00029061,2]
[392718792,1761855032422,-500.0,0.00029299,2]
[392718796,1761855032432,-500.0,0.00029299,2]
[392718799,1761855032442,-5516.0,0.000293,5]
[392718802,1761855032452,-316.275,0.00029422,2]
[392718805,1761855032461,-2500.0,0.00029571,7]
[392718808,1761855032470,-2500.0,0.0002958,7]
[392718812,1761855032480,-2500.0,0.00029589,7]
[392718814,1761855032489,-2500.0,0.00029589,7]
[392718816,1761855032499,-500.0,0.00029729,7]
[392718818,1761855032509,-650.0,0.0002997,2]
[392718820,1761855032518,-1071.94596581,0.00029981,2]
[392718822,1761855032528,-250.0,0.00029981,2]
[392718824,1761855032537,-250.0,0.00029981,2]
[392718826,1761855032546,-250.0,0.00029981,2]
[392718828,1761855032556,-250.0,0.00029981,2]
[392718830,1761855032565,-250.0,0.00029981,2]
[392718832,1761855032575,-250.0,0.00029981,2]
[392718835,1761855032586,-250.0,0.00029981,2]
[392718837,1761855032596,-500.0,0.00029981,2]
[392718839,1761855032605,-250.0,0.00029981,2]
[392718841,1761855032614,-250.0,0.00029981,2]
[392718843,1761855032628,-500.0,0.00029981,2]
[392718845,1761855032637,-250.0,0.00029981,2]
[392718847,1761855032647,-250.0,0.00029981,2]
[392718849,1761855032657,-500.0,0.00029981,2]
[392718851,1761855032666,-250.0,0.00029981,2]
[392718853,1761855032676,-250.0,0.00029981,2]
[392718855,1761855032686,-500.0,0.00029981,2]
[392718857,1761855032695,-303.68486206,0.00029981,2]
[392718859,1761855032705,-250.0,0.00029981,2]
[392718861,1761855032716,-500.0,0.00029981,2]
[392718863,1761855032726,-250.0,0.00029981,2]
[392718865,1761855032735,-500.0,0.00029981,2]
[392718867,1761855032745,-250.0,0.00029981,2]
[392718869,1761855032754,-500.0,0.00029981,2]
[392718872,1761855032766,-250.0,0.00029981,2]
[392718874,1761855032776,-500.0,0.00029981,2]
[392718875,1761855032788,-250.0,0.00029981,2]
[392718876,1761855032798,-500.0,0.00029981,2]
[392718877,1761855032809,-250.0,0.00029981,2]
[392718878,1761855032819,-500.0,0.00029981,2]
[392718879,1761855032828,-500.0,0.00029981,2]
[392718880,1761855032840,-574.12855636,0.00029981,2]
[392718881,1761855032851,-500.0,0.00029981,2]
[392718882,1761855032861,-500.0,0.00029981,2]
[392718883,1761855032870,-500.0,0.00029981,2]
[392718884,1761855032880,-500.0,0.00029981,2]
[392718885,1761855032890,-500.0,0.00029981,2]
[392718886,1761855032899,-500.0,0.00029981,2]
[392718887,1761855032909,-500.0,0.00029981,2]
[392718888,1761855032918,-500.0,0.00029981,2]
[392718889,1761855032929,-500.0,0.00029981,2]
[392718890,1761855032938,-500.0,0.00029981,2]
[392718891,1761855032948,-500.0,0.00029981,2]
[392718892,1761855032958,-500.0,0.00029981,2]
[392718893,1761855032968,-500.0,0.00029981,2]
[392718894,1761855032977,-500.0,0.00029981,2]
[392718895,1761855032987,-500.0,0.00029981,2]
[392718896,1761855032997,-500.0,0.00029981,2]
[392718897,1761855033008,-500.0,0.00029981,2]
[392718898,1761855033022,-500.0,0.00029981,2]
[392718899,1761855033032,-500.0,0.00029981,2]
[392718900,1761855033042,-500.0,0.00029981,2]
[392718901,1761855033051,-500.0,0.00029981,2]
[392718902,1761855033061,-500.0,0.00029981,2]
[392718903,1761855033070,-1565.54131366,0.0003,2]
[392718904,1761855033080,-152.72,0.00030072,2]
[392718905,1761855033092,-244.0,0.00030116,2]
[392718906,1761855033102,-1000.0,0.00030117,2]
[392718907,1761855033111,-283.0,0.00030285,2]
[392718908,1761855033122,-2078.987,0.00030364,25]
[392718909,1761855033132,-173.867,0.00030364,25]
[392718910,1761855033141,-168.0,0.0003042,2]
[392718911,1761855033151,-150.0,0.00030502,2]
[392718912,1761855033161,-168.0,0.00030579,2]
[392718913,1761855033170,-318.41200745,0.00030597,2]
[392718914,1761855033180,-150.99,0.0003062,2]
[392718915,1761855033192,-1170.56,0.00030722,2]
[392718916,1761855033201,-168.0,0.00030823,2]
[392718917,1761855033211,-168.0,0.00030867,2]
[392718918,1761855033221,-168.0,0.00030881,2]
[392718919,1761855033231,-168.0,0.00030907,7]
[392718920,1761855033241,-168.0,0.00030908,2]
[392718921,1761855033251,-168.0,0.0003097,2]
[392718922,1761855033261,-455.92906498,0.0003097,2]
[392718923,1761855033271,-400.0,0.0003097,2]
[392718924,1761855033280,-168.0,0.00030997,2]
[392718925,1761855033290,-600.0,0.00031,11]
[392718926,1761855033300,-600.0,0.00031,11]
[392718927,1761855033309,-600.0,0.00031,11]
[392718928,1761855033319,-600.0,0.00031,11]
[392718929,1761855033329,-600.0,0.00031,11]
[392718930,1761855033343,-600.0,0.00031,11]
[392718931,1761855033353,-600.0,0.00031,11]
[392718932,1761855033363,-600.0,0.00031,11]
[392718933,1761855033372,-168.0,0.00031208,2]
[392718934,1761855033382,-168.0,0.00031295,2]
[392718935,1761855033393,-168.0,0.0003139,2]
[392718936,1761855033406,-500.0,0.00031453,7]
[392718937,1761855033416,-300.0,0.0003147,2]
[392718938,1761855033426,-400.0,0.0003147,2]
[392718939,1761855033436,-2000.0,0.000315,2]
[392718940,1761855033445,-152.0,0.00031594,3]
[392718941,1761855033455,-168.0,0.00031625,2]
[392718942,1761855033464,-272.13,0.00031647,2]
[392718943,1761855033474,-168.0,0.00031726,2]
[392718944,1761855033483,-168.0,0.00031797,2]
[392718945,1761855033493,-500.0,0.00032062,2]
[392718946,1761855033503,-168.0,0.0003226,2]
[392718947,1761855033513,-500.0,0.000323,5]
[392718948,1761855033523,-221.53471527,0.00032305,2]
[392718949,1761855033533,-1000.0,0.00032413,2]
[392718950,1761855033543,-213.27647,0.00032435,2]
[392718951,1761855033554,-159.3,0.00032504,120]
[392718952,1761855033564,-168.0,0.00032519,7]
[392718953,1761855033574,-325.37953968,0.0003263,2]
[392718954,1761855033584,-167.80213833,0.0003263,2]
[392718955,1761855033595,-921.1081637,0.00032631,2]
[392718956,1761855033605,-9759.6243932,0.00032631,2]
[392718957,1761855033615,-8989.6543777,0.00032631,2]
[392718958,1761855033626,-1353.347962,0.00032631,2]
[392718959,1761855033636,-400.8866742,0.00032631,2]
[392718960,1761855033646,-500.0,0.00032873,5]
[392718961,1761855033655,-500.0,0.00032873,5]
[392718962,1761855033664,-500.0,0.00032873,5]
[392718963,1761855033674,-153.0,0.00032877,30]
[392718964,1761855033683,-153.0,0.00032877,30]
[392718965,1761855033693,-153.0,0.00032877,30]
[392718966,1761855033702,-153.0,0.00032877,30]
[392718967,1761855033712,-153.0,0.00032877,30]
[392718968,1761855033721,-153.0,0.00032877,30]
[392718969,1761855033731,-153.0,0.00032877,30]
[392718970,1761855033740,-153.0,0.00032877,30]
[392718971,1761855033750,-153.0,0.00032877,30]
[392718972,1761855033760,-153.0,0.00032877,30]
[392718973,1761855033771,-153.0,0.00032877,30]
[392718974,1761855033781,-153.0,0.00032877,30]
[392718975,1761855033795,-153.0,0.00032877,30]
[392718976,1761855033805,-153.0,0.00032877,30]
[392718977,1761855033814,-153.0,0.00032877,30]
[392718978,1761855033824,-153.0,0.00032877,30]
[392718979,1761855033833,-153.0,0.00032877,30]
[392718980,1761855033845,-153.0,0.00032877,30]
[392718981,1761855033854,-153.0,0.00032877,30]
[392718982,1761855033864,-153.0,0.00032877,30]
[392718983,1761855033873,-153.0,0.00032877,30]
[392718984,1761855033883,-153.0,0.00032877,30]
[392718985,1761855033892,-153.0,0.00032877,30]
[392718986,1761855033901,-153.0,0.00032877,30]
[392718987,1761855033911,-153.0,0.00032877,30]
[392718988,1761855033920,-155.0,0.00032877,30]
[392718989,1761855033930,-155.0,0.00032877,30]
[392718990,1761855033940,-155.0,0.00032877,30]
[392718991,1761855033949,-155.0,0.00032877,30]
[392718992,1761855033959,-155.0,0.00032877,30]
[392718993,1761855033969,-155.0,0.00032877,30]
[392718994,1761855033979,-155.0,0.00032877,30]
[392718995,1761855033988,-155.0,0.00032877,30]
[392718996,1761855033997,-155.0,0.00032877,30]
[392718997,1761855034007,-155.0,0.00032877,30]
[392718998,1761855034017,-155.0,0.00032877,30]
[392718999,1761855034026,-155.0,0.00032877,30]
[392719000,1761855034036,-155.0,0.00032877,30]
[392719001,1761855034045,-155.0,0.00032877,30]
[392719002,1761855034054,-155.0,0.00032877,30]
[392719003,1761855034064,-155.0,0.00032877,30]